Cogmind - Beta 15 @@@ ROGUE MODE // 2025.05.08 @ 00:06:12 Player: LordBikkhus Result: Destroyed by Y-45 Defender with Heavy Assault Rifle Performance ------------- Evolutions (2) 1000 Regions Visited (4) 800 Robots Destroyed (7) 35 Value Destroyed (192) 192 Prototype IDs (2) 40 Alien Tech Used (0) 0 Bonus (0) 0 TOTAL SCORE: 2067 Bonus ------- None Cogmind --------- Core Integrity 0/550 Matter 200/300 Energy 100/100 System Corruption 0% Temperature Cool (9) Movement Treading (160) Location -8/Materials Parts ------- > --- POWER (2) -------- (None) > --- PROPULSION (3) --- Light Treads > --- UTILITY (3) ------ (None) > --- WEAPON (3) ------- Mini Grenade Launcher > --- INVENTORY (5) ---- Ion Engine Ion Engine Small Matter Pod (50) Assault Rifle Peak State ------------ > --- POWER ------------ Ion Engine > --- PROPULSION ------- Aluminum Leg Aluminum Leg Improved Aluminum Leg > --- UTILITY ---------- Medium Storage Unit Small Matter Pod System Shield > --- WEAPON ----------- Heavy EM Pulse Gun Assault Rifle Light Cannon > --- INVENTORY -------- Ion Engine Ion Engine Ion Engine Small Matter Pod Mini Grenade Launcher [Rating: 14] Favorites ----------- Power Ion Engine Engine Ion Engine Propulsion Aluminum Leg Treads Light Treads Leg Aluminum Leg Utility Small Storage Unit Device Terrain Scanner Storage Small Storage Unit Hackware System Shield Weapon Light Cannon Energy Gun EM Pulse Gun Ballistic Gun Assault Rifle Ballistic Cannon Light Cannon Launcher Mini Grenade Launcher Build | -11 -10 -9 -9 -8 ------- Run | Yrd Mat Mat Min Mat Slots Evolved 4 | . . 2 . 2 Power 1 | . . . . 1 Propulsion 1 | . . 1 . . Utility 1 | . . 1 . . Weapon 1 | . . . . 1 Parts Attached 17 | 6 2 2 3 4 Power 1 | 1 . . . . Engine 1 | 1 . . . . Core . | . . . . . Reactor . | . . . . . Propulsion 6 | 2 . 1 2 1 Treads 1 | . . . . 1 Leg 5 | 2 . 1 2 . Wheel . | . . . . . Hover . | . . . . . Flight . | . . . . . Utility 5 | 1 1 1 1 1 Device 1 | . 1 . . . Storage 3 | 1 . 1 1 . Processor . | . . . . . Hackware 1 | . . . . 1 Protection . | . . . . . Artifact . | . . . . . Weapon 5 | 2 1 . . 2 Energy Gun 2 | 1 . . . 1 Energy Cannon . | . . . . . Ballistic Gun 1 | 1 . . . . Ballistic Cannon 1 | . 1 . . . Launcher 1 | . . . . 1 Special Weapon . | . . . . . Impact Weapon . | . . . . . Slashing Weapon . | . . . . . Piercing Weapon . | . . . . . Special Melee Weapon . | . . . . . Unidentified Prototypes . | . . . . . Parts Lost 4 | . . . 3 1 Power . | . . . . . Propulsion 2 | . . . 1 1 Utility 1 | . . . 1 . Weapon 1 | . . . 1 . Highest Loss Streak 3 | . . . 3 1 To Critical Strikes . | . . . . . Average Backups 3 | . 1 4 3 4 Power 1 | . . 2 2 2 Propulsion . | . . 1 . . Utility . | . . . . 1 Weapon . | . . 1 . 1 Tool/Special . | . . . . . Unused Backups 5 | . . 1 . 4 Power 4 | . . 1 . 3 Propulsion . | . . . . . Utility 1 | . . . . 1 Weapon . | . . . . . Tool/Special . | . . . . . Average Slot Usage (%) 83 | . 99 91 91 47 Engine 10 | . 14 11 11 5 Leg 26 | . 28 31 30 14 Device 7 | . 13 11 4 . Storage 15 | . 14 15 23 12 Energy Gun 8 | . 14 11 5 3 Ballistic Gun 2 | . 2 . 5 4 Ballistic Cannon 9 | . 11 11 11 4 Peak Build Rating 14 | 6 7 10 10 14 Average Rating 7 | 4 6 9 9 6 On Entrance 6 | . 6 7 10 10 Naked Turns 116 | . . . . 116 Heaviest Build 29 | 14 16 26 26 29 Greatest Support 33 | 20 20 33 33 33 Greatest Overweight (x) 4 | 4 . . 1 1 Average Overweight (x) . | 1 . . . . Largest Inventory Capacity 10 | 8 8 10 10 10 Average Capacity 8 | 7 8 8 10 7 Most Carried 7 | . 4 4 4 7 Average Carried 3 | . 1 3 3 4 Final Capacity 10 | 8 8 10 10 5 Final Carried 4 | . 4 4 4 4 Class Distribution -------------------- 91% | Mutant 8% | Gunner Dominant Class ---------------- Mutant | -10/Materials Mutant | -9/Materials Mutant | -9/Mines Mutant | -8/Materials Resources | -11 -10 -9 -9 -8 ----------- Run | Yrd Mat Mat Min Mat Matter Collected 669 | 183 141 50 291 4 Remotely . | . . . . . Salvage Created 290 | . 54 68 110 58 Parts 16 | . 5 2 . 9 Haulers Intercepted 1 | . . 1 . . Recyclers Shooed . | . . . . . Parts Field Recycled . | . . . . . Retrieved Matter . | . . . . . Parts Self-Destructed . | . . . . . Prevented . | . . . . . Kills | -11 -10 -9 -9 -8 ------- Run | Yrd Mat Mat Min Mat Combat Hostiles Destroyed 14 | . 1 1 11 1 Guns 5 | . 1 . 4 . Cannons 8 | . . 1 7 . AOE 1 | . . . . 1 Classes Destroyed 6 | . 2 1 1 2 Worker 1 | . . . . 1 Builder 1 | . . . . 1 Hauler 1 | . . 1 . . Watcher 1 | . 1 . . . Grunt 3 | . 1 1 . 1 Assembled 11 | . . . 11 . Best Kill Streak 10 | . 1 1 10 2 Combat Bots Only 10 | . 1 1 10 1 Max Kills in Single Turn 1 | . 1 1 1 1 Gunslinging . | . . . . . Exploded 1 | . . . . 1 Melee . | . . . . . Uniques/NPCs Destroyed . | . . . . . Combat | -11 -10 -9 -9 -8 -------- Run | Yrd Mat Mat Min Mat Hostile Shots Fired 148 | . 4 23 32 89 Missed 59 | . 2 13 4 40 Hits 89 | . 2 10 28 49 Melee 8 | . . . 8 . Projectile 81 | . 2 10 20 49 Critical Strikes 3 | . . . 1 2 Damage Taken 1468 | . 21 112 470 865 Core 667 | . . 28 89 550 Absorbed by Shields . | . . . . . Regen/Repaired (Parts) 17 | . 17 . . . Core Remaining (%) 90 | 100 100 . 70 . Volleys Fired 73 | . 14 18 28 13 Largest 3 | . 2 2 2 3 Hottest 95 | . 70 70 70 95 Shots Fired 135 | . 26 36 50 23 Gun 64 | . 14 18 22 10 Cannon 63 | . 12 18 28 5 Launcher 8 | . . . . 8 Special . | . . . . . Kinetic 78 | . 12 18 38 10 Thermal . | . . . . . Explosive 8 | . . . . 8 Electromagnetic 49 | . 14 18 12 5 Robot Hit Streak 8 | . 4 3 8 7 Robot Miss Streak 9 | . 6 9 3 2 Penetration Max . | . . . . . Secondary Targets . | . . . . . Shots Hit Robots 69 | . 8 17 29 15 Core Hits 37 | . 5 3 20 9 Critical Kills . | . . . . . Critical Parts Destroyed . | . . . . . Critical Strikes . | . . . . . Melee Attacks . | . . . . . Impact . | . . . . . Slashing . | . . . . . Piercing . | . . . . . Sneak Attacks . | . . . . . Combat Hostiles . | . . . . . Follow-up Attacks . | . . . . . Damage Inflicted 1361 | . 148 340 462 411 Guns 379 | . 62 97 141 79 Cannons 651 | . 75 202 319 55 Explosions 285 | . . 27 . 258 Melee . | . . . . . Ramming 46 | . 11 14 2 19 Kinetic 744 | . 75 202 381 86 Thermal 27 | . . 27 . . Explosive 258 | . . . . 258 Electromagnetic 286 | . 62 97 79 48 Impact . | . . . . . Slashing . | . . . . . Piercing . | . . . . . Highest Corruption 4 | . . . 4 . Average Corruption 4 | . . . 4 . Corruption Purged . | . . . . . Corruption Blocked . | . . . . . Effects 4 | . . . 4 . Message Errors 1 | . . . 1 . Data Loss (minor) 2 | . . . 2 . Data Loss (major) 1 | . . . 1 . Overload Shots . | . . . . . Overflow Damage 12 | . . . 12 . Projectiles 12 | . . . 12 . Explosions . | . . . . . Melee . | . . . . . Knockbacks 7 | . 2 2 3 . Impact . | . . . . . Kinetic 6 | . 2 2 2 . Secondary 1 | . . . 1 . Self-Inflicted Damage 57 | . . . . 57 Shots 4 | . . . . 4 Rammed 3 | . . . . 3 Targets Rammed 8 | . 2 1 1 4 Kicked 5 | . 2 1 1 1 Crushed . | . . . . . Highest Temperature 75 | . 48 27 12 75 Average Temperature 22 | . 15 22 8 38 Received Heat Transfer 385 | . 12 36 40 297 Siege Activations . | . . . . . Martial Activations . | . . . . . Shielding Activations . | . . . . . Robots Disrupted . | . . . . . Combat Hostiles . | . . . . . Robots Corrupted . | . . . . . Combat Hostiles . | . . . . . Parts Fried . | . . . . . Impact Corruptions . | . . . . . Robots Melted . | . . . . . Combat Hostiles . | . . . . . Parts Melted 1 | . . 1 . . Heat Transferred 50 | . . 50 . . Parts Sabotaged . | . . . . . Parts Stolen . | . . . . . Parts Stripped . | . . . . . Power Chain Reactions 1 | . . 1 . . Alert | -11 -10 -9 -9 -8 ------- Run | Yrd Mat Mat Min Mat Maximum Alert Level 1 | . . . . 1 Low Security (%) 99 | 100 100 100 100 95 Level 1 . | . . . . 4 Level 2 . | . . . . . Level 3 . | . . . . . Level 4 . | . . . . . Level 5 . | . . . . . High Security . | . . . . . Max Security . | . . . . . Peak Influence 226 | . 36 40 3 226 Initial 10 | . . 10 3 . Average 13 | . 5 8 . 43 Influence Increases 460 | . 69 70 . 321 Destroy 0b10 Robot/C 60 | . 20 20 . 20 Destroy 0b10 Robot/NC 20 | . 5 5 . 10 Destroy Leader 24 | . 12 12 . . Successful Hack 10 | . . . . 10 Disable Machine 60 | . 15 15 . 30 Destroy Structure 16 | . 2 3 . 11 Partial Spotted 15 | . . 15 . . Lose Combat Pursuer 255 | . 15 . . 240 Influence Decreases 244 | . 43 86 10 105 Entered New Map 23 | . . 16 7 . Time Decay 211 | . 43 70 3 95 Lost Part 10 | . . . . 10 Squads Dispatched 7 | . 3 . . 4 Investigation 4 | . 1 . . 3 Extermination . | . . . . . Reinforcement 3 | . 2 . . 1 Assault . | . . . . . Garrison . | . . . . . Intercept . | . . . . . Searches Triggered . | . . . . . Construction Impeded . | . . . . . Haulers Reinforced . | . . . . . Active Scanning Responses . | . . . . . Cargo Convoy Interrupts . | . . . . . Stealth | -11 -10 -9 -9 -8 --------- Run | Yrd Mat Mat Min Mat Distress Signals 3 | . 1 . . 2 Communications Jammed . | . . . . . Distress Signals . | . . . . . Times Spotted 52 | . 7 10 12 23 Peak Tracking Total 11 | . 2 6 5 11 Tactical Retreats 8 | . 1 . 1 6 Traps | -11 -10 -9 -9 -8 ------- Run | Yrd Mat Mat Min Mat Traps Triggered 2 | . . . . 2 Indirectly . | . . . . . Trap Hack Attempts . | . . . . . Triggered . | . . . . . Disarmed . | . . . . . Reprogrammed . | . . . . . Reused . | . . . . . Traps Extracted . | . . . . . Installed . | . . . . . Triggered . | . . . . . Machines | -11 -10 -9 -9 -8 ---------- Run | Yrd Mat Mat Min Mat Machines Disabled 5 | . 1 2 . 2 Max in Single Turn 1 | . 1 1 . 1 Machines Repaired . | . . . . . Machines Dismantled . | . . . . . Machines Sabotaged . | . . . . . Overloaded Fab Kills . | . . . . . Hacking | -11 -10 -9 -9 -8 --------- Run | Yrd Mat Mat Min Mat Machines Accessed 5 | . 3 . . 2 Terminals 4 | . 2 . . 2 Fabricators . | . . . . . Repair Stations 1 | . 1 . . . Recycling Units . | . . . . . Scanalyzers . | . . . . . Garrison Access . | . . . . . Total Hacks 16 | . 10 . . 6 Successful 9 | . 6 . . 3 Failed 7 | . 4 . . 3 Catastrophic 3 | . 2 . . 1 Database Lockouts . | . . . . . Manual . | . . . . . Terminals 12 | . 6 . . 6 Fabricators . | . . . . . Repair Stations 4 | . 4 . . . Recycling Units . | . . . . . Scanalyzers . | . . . . . Garrison Access . | . . . . . Terminal Hacks 6 | . 3 . . 3 Prototype ID Bank 1 | . 1 . . . Alert Level 2 | . 2 . . . Surveillance Status 1 | . . . . 1 Investigation Status 1 | . . . . 1 Zone Layout 1 | . . . . 1 Fabricator Hacks . | . . . . . Repair Station Hacks 3 | . 3 . . . Scan Component 2 | . 2 . . . Repair 1 | . 1 . . . Recycling Unit Hacks . | . . . . . Scanalyzer . | . . . . . Garrison Access Hacks . | . . . . . Unauthorized Hacks . | . . . . . Terminals . | . . . . . Fabricators . | . . . . . Repair Stations . | . . . . . Recycling Units . | . . . . . Scanalyzers . | . . . . . Garrison Access . | . . . . . Data Cores Recovered . | . . . . . Used . | . . . . . Hacking Detections 4 | . 3 . . 1 Full Trace Events 1 | . . . . 1 Feedback Events . | . . . . . Feedback Blocked . | . . . . . Robot Schematics Acquired . | . . . . . Robots Built . | . . . . . Authchips . | . . . . . Time . | . . . . . Total Robot Build Rating . | . . . . . Part Schematics Acquired . | . . . . . Parts Built . | . . . . . Authchips . | . . . . . Time . | . . . . . Total Part Build Rating . | . . . . . Parts Repaired 1 | . 1 . . . Time 26 | . 26 . . . Parts Recycled . | . . . . . Recycled Matter . | . . . . . Retrieved Matter . | . . . . . Retrieved Components . | . . . . . Parts Scanalyzed . | . . . . . Part Schematics Acquired . | . . . . . Parts Damaged . | . . . . . Bothacking | -11 -10 -9 -9 -8 ------------ Run | Yrd Mat Mat Min Mat Used RIF Installer . | . . . . . Robots Hacked . | . . . . . Non-combat . | . . . . . Combat . | . . . . . Robot Hacks Applied . | . . . . . Relay Couplers Released . | . . . . . Fabnet Peak Effective % . | . . . . . Robots Rewired . | . . . . . Allies Hacked . | . . . . . Hacks Repelled . | . . . . . Allies | -11 -10 -9 -9 -8 -------- Run | Yrd Mat Mat Min Mat Total Allies . | . . . . . Largest Group . | . . . . . Highest-Rated Group . | . . . . . Highest-Rated Ally . | . . . . . Total Orders . | . . . . . Ally Attacks . | . . . . . Total Damage . | . . . . . Kills . | . . . . . Allies Corrupted . | . . . . . Allies Melted . | . . . . . Intel | -11 -10 -9 -9 -8 ------- Run | Yrd Mat Mat Min Mat Active Infowar (turns) 740 | . 367 274 99 . Terrain 740 | . 367 274 99 . Robot Analysis Total . | . . . . . Derelict Logs Recovered . | . . . . . Drone Launches . | . . . . . Drone Recoveries . | . . . . . Exploration | -11 -10 -9 -9 -8 ------------- Run | Yrd Mat Mat Min Mat Turns Passed 1338 | 131 379 274 254 300 Spaces Moved 934 | 78 250 151 129 326 Core 243 | 24 . . . 219 Treads . | . . . . . Legs 691 | 54 250 151 129 107 Wheels . | . . . . . Hover . | . . . . . Flight . | . . . . . Fastest Speed 50 | 50 120 120 120 50 Average Speed 108 | 152 120 120 127 75 Slowest Speed 250 | 250 120 120 190 190 Overloaded Moves . | . . . . . Propulsion Burnouts . | . . . . . Robots Hopped . | . . . . . Potential Cave-ins . | . . . . . Cave-ins Triggered . | . . . . . Exploration Rate (%) 23 | 5 35 13 18 45 Regions Visited 4 Branch Regions 1 Pre-discovered Areas . | . . . . . Known Exits Taken . | . . . . . Unknown Exits Taken 4 | 1 1 1 1 . Scrap Searched 1 | . . . 1 . Spaces Dug . | . . . . . Terrain Destroyed 14 | . . 2 . 12 Melee . | . . . . . Projectile . | . . . . . AOE 14 | . . 2 . 12 Terrain Rammed . | . . . . . Walls Destroyed . | . . . . . Machines Disabled . | . . . . . Actions | -11 -10 -9 -9 -8 --------- Run | Yrd Mat Mat Min Mat Total 1124 | 87 301 207 168 361 Wait 82 | 4 29 34 5 10 Move 931 | 77 249 151 128 326 Hop . | . . . . . Pick Up 9 | . 5 1 2 1 Fast Attach 14 | 6 1 2 2 3 Attach 3 | . . . 2 1 Detach 2 | . . . . 2 Swap 1 | . 1 . . . Drop 2 | . . 1 . 1 Fire 73 | . 14 18 28 13 Melee . | . . . . . Ram 3 | . . . . 3 Kick 4 | . 2 . 1 1 Crush . | . . . . . Escape Stasis . | . . . . . Rewire . | . . . . . Trap . | . . . . . Miscellaneous . | . . . . . Route ------- -11/Scrapyard -10/Materials -9/Materials -9/Mines -8/Materials (discovered 1 exit: [Fac]) History --------- Turn | Location | Event 2 | -11/Scrapyard | Met Revision 17 8 | -11/Scrapyard | Discovered new exit (range 15) 132 | -11/Scrapyard | Entered Materials 133 | -10/Materials | Met a group of wandering Federalists 294 | -10/Materials | Discovered new exit (range 15) 317 | -10/Materials | Build established: Mutant 384 | -10/Materials | Repaired Ion Engine 511 | -10/Materials | Entered another Materials area 511 | -9/Materials | Evolved 2 slots: Propulsion x1, Utility x1 759 | -9/Materials | Discovered new exit (range 6) 785 | -9/Materials | Entered Mines 786 | -9/Mines | Assembled infested the area 844 | -9/Mines | Discovered new exit (range 11) 955 | -9/Mines | Lost 3 parts (1n1u1w) 956 | -9/Mines | Destroyed 10 combat bots 1039 | -9/Mines | Entered Materials 1039 | -8/Materials | Evolved 2 slots: Power x1, Weapon x1 1205 | -8/Materials | Released all parts (7) 1248 | -8/Materials | Discovered new exit (range 19) 1252 | -8/Materials | Core integrity fell below 50% 1331 | -8/Materials | Core integrity fell below 20% 1339 | -8/Materials | Destroyed by Y-45 Defender with Heavy Assault Rifle Last Messages --------------- 01304_ K-01 Serf collects debris. 01312_ K-01 Serf cleans the Hadron Collector. 01320_ K-01 Serf collects debris. 01322_ Hadron Collector disabled. 01324_ K-01 Serf collects debris. 01324_ G-47 Trooper destroyed. 01326_ Hadron Collector disabled. 01327_ A-02 Transporter destroyed. 01328_ K-01 Serf destroyed. 01329_ Drone sends a signal. 01331_ Slug penetrates Wall. 01331_ U-05 Engineer lays Concrete. 01331_ W-25 Informer sends out distress signal. 01332_ U-05 Engineer lays Concrete. 01335_ Acquired Lgt. Treads. 01335_ U-05 Engineer lays Concrete. 01335_ Slug penetrates Hadron Collector. 01335_ Hadron Collector disabled. 01336_ U-05 Engineer lays Concrete. Map ----- +----------------------------------------------------+ | ???????????????????????????? = ????????# * # | | ????????????????????? ?????? ????????# # | | ????????????????????? ????? ???????# + | | ?????????????????????# #######+###????# # | | ?????????????????????# ##########+#### | | ?????????????????????# | | ?????????????????????# | | ?????????????????????# | | ?????????????????????# ## | | ????????????????????## ############# #? | | ???????????????????## # #????# #? | | ?????????????????? !! # #????? #? | | ?????????????????? !! / #????? #? | | ???????????????????"""" # ######+## | | ?????????????????????"" #####+##] | | ?????????????????? ##### ## ! """ | | ????????????????? g # """ | | ?????????????????? + """ | | ???????????????# g h # / | | ???????????????# """ """ " ####### """ | | ???????????????# """ """ #?????#] ! """ | | ???????????????# " "" #?????# """ | | ??????????????## u " " #?????# / | | ??????????????# r [* Y ############### | | ??????????????# !%[ [%= % | | ?????????????# = [@ | | ?????????????# | | ?????????????## # # ###+########### | | ?????????????# ??# ####### #?????? | | ?????????????#!! ????#[[||!!#?????# #?????? | | ?????????????#!]??????#[[||!!#?????# #?????? | | ?????????????#????????########?????# #?????? | | ???????????????????????????????????# #?????? | | ???????????????????????????????????#########?????? | | | | | | | | | | | | | | | | | | | | | | | | | | | | | | | | | +----------------------------------------------------+ Best States ------------- Heat Dissipation 31 Energy Generation 10 Energy Capacity 250 Matter Stores 350 Matter Capacity 350 Sight Range 16 Terrain Scan Range 14 Terrain Scan Density 10 Evasion (%) 55 Defensive Hacking 10 Item Schematics ----------------- None Robot Schematics ------------------ None Fabricated ------------ Nothing Repaired ---------- Ion Engine | 71% | -10/Materials Alien Tech Used ----------------- None Achievements -------------- Party Time Challenges ------------ None Game ------ Seed SmallArcRouter Manual? 0 Play Time 00:43:53 Cumulative 12.2 hours Start 2025.05.07 @ 22:49:23 End 2025.05.08 @ 00:06:12 Sessions 1 Manual Loads 0 Difficulty Rogue Special Mode None Game No. 25 Rogue 25 Adventurer 0 Explorer 0 Win Type - Total 0 Types 0/0/0/0/0/0/0/0/0/0 Lore% 5 Gallery% 12 Achievement% 15 Wizard Run 0 Options --------- Layout 1 ASCII 0 Keyboard 0 Movement Mouse Keybinds 0 Fullscreen 1 Font 24/Smallcaps Map View 50x35 Zoom Use 0% Tactical HUD 1 Map Filters NONE Filters NONE Steam 1 RUN: 3b0ac198-181b-48f7-baf7-509fa4688f4f